fUST/lending_fUST_20251102
["ID","MTS","AMOUNT","RATE_DAILY","PERIOD"]
[392839560,1762031445273,-153.088738,0.000381,31]
[392839561,1762031445282,-151.0,0.000381,2]
[392839562,1762031445294,-233.456909,0.000381,31]
[392839563,1762031445303,-151.0,0.000381,2]
[392839564,1762031445312,-311.61,0.000381,2]
[392839565,1762031445321,-154.455577,0.000381,31]
[392839566,1762031445330,-179.915245,0.000381,31]
[392839567,1762031445339,-179.915245,0.000381,31]
[392839568,1762031445347,-179.915245,0.000381,31]
[392839569,1762031445356,-179.915245,0.000381,31]
[392839570,1762031445365,-581.13,0.00038119,3]
[392839571,1762031445374,-6134.93205354,0.00038119,3]
[392839572,1762031445383,-224.13144032,0.00038119,3]
[392839573,1762031445392,-774.82,0.0003812,3]
[392839574,1762031445401,-387.41,0.0003812,3]
[392839575,1762031445411,-193.71,0.0003812,3]
[392839576,1762031445419,-4261.44,0.00038128,3]
[392839577,1762031445429,-500.0,0.00038128,8]
[392839578,1762031445438,-524.09,0.00038128,8]
[392839579,1762031445447,-500.0,0.00038129,8]
[392839580,1762031445456,-500.0,0.00038129,8]
[392839581,1762031445465,-155.933781,0.00038129,31]
[392839583,1762031445473,-151.0,0.00038129,7]
[392839584,1762031445482,-151.0,0.00038129,31]
[392839585,1762031445491,-151.0,0.00038129,7]
[392839586,1762031445500,-161.328824,0.00038129,31]
[392839587,1762031445509,-151.0,0.00038129,7]
[392839588,1762031445518,-151.0,0.00038129,31]
[392839590,1762031445527,-159.518539,0.00038129,31]
[392839592,1762031445536,-500.0,0.00038129,8]
[392839601,1762031445628,-561.98,0.00038129,8]
[392839603,1762031445638,-561.98,0.00038129,8]
[392839605,1762031445647,-4261.44,0.00038129,3]
[392839607,1762031445656,-500.0,0.00038129,8]
[392839609,1762031445665,-151.0,0.00038129,31]
[392839611,1762031445674,-151.0,0.00038129,31]
[392839613,1762031445683,-151.0,0.00038129,31]
[392839615,1762031445691,-151.0,0.00038129,31]
[392839617,1762031445700,-151.0,0.00038129,31]
[392839619,1762031445709,-500.0,0.00038129,8]
[392839621,1762031445718,-151.0,0.00038129,31]
[392839623,1762031445727,-151.0,0.00038129,31]
[392839625,1762031445736,-187.016508,0.00038129,31]
[392839627,1762031445745,-500.0,0.00038129,8]
[392839629,1762031445755,-2390.64,0.00038129,8]
[392839630,1762031445764,-264.10121004,0.00038129,8]
[392839632,1762031445774,-725.05,0.00038129,2]
[392839633,1762031445792,-725.05,0.00038129,2]
[392839634,1762031445801,-2092.52,0.00038129,8]
[392839635,1762031445810,-151.0,0.0003813,31]
[392839636,1762031445819,-151.0,0.0003813,31]
[392839637,1762031445828,-242.382288,0.0003813,31]
[392839638,1762031445838,-151.0,0.0003813,31]
[392839639,1762031445847,-202.631074,0.0003813,31]
[392839640,1762031445856,-151.0,0.0003813,31]
[392839641,1762031445866,-151.0,0.0003813,31]
[392839642,1762031445876,-151.0,0.0003813,31]
[392839643,1762031445887,-151.0,0.0003813,31]
[392839644,1762031445896,-151.0,0.0003813,31]
[392839645,1762031445906,-151.0,0.0003813,31]
[392839647,1762031445915,-151.0,0.0003813,31]
[392839648,1762031445925,-151.0,0.0003813,31]
[392839649,1762031445935,-157.413438,0.0003813,31]
[392839650,1762031445944,-151.0,0.0003813,31]
[392839651,1762031445954,-151.0,0.0003813,31]
[392839652,1762031445963,-151.0,0.0003813,31]
[392839654,1762031445973,-181.665866,0.0003813,2]
[392839655,1762031445982,-181.665866,0.0003813,2]
[392839656,1762031445991,-181.665866,0.0003813,2]
[392839657,1762031446000,-181.665866,0.0003813,2]
[392839658,1762031446010,-261.230937,0.0003813,31]
[392839659,1762031446019,-261.230937,0.0003813,31]
[392839660,1762031446028,-261.230937,0.0003813,31]
[392839661,1762031446037,-261.230937,0.0003813,31]
[392839662,1762031446046,-202.216892,0.0003813,31]
[392839663,1762031446055,-161.08392253,0.0003813,2]
[392839664,1762031446065,-524.09,0.0003813,8]
[392839665,1762031446076,-524.09,0.0003813,8]
[392839666,1762031446086,-15000.0,0.00038131,30]
[392839667,1762031446096,-10000.0,0.00038131,30]
[392839668,1762031446106,-7000.0,0.00038131,20]
[392839669,1762031446115,-151.0,0.00038131,31]
[392839670,1762031446125,-151.0,0.00038131,31]
[392839671,1762031446134,-151.0,0.00038131,2]
[392839672,1762031446143,-151.0,0.00038131,2]
[392839673,1762031446152,-179.915245,0.00038131,31]
[392839674,1762031446163,-179.915245,0.00038131,31]
[392839675,1762031446173,-179.915245,0.00038131,31]
[392839676,1762031446183,-179.915245,0.00038131,31]
[392839677,1762031446195,-487.146056,0.00038131,31]
[392839678,1762031446206,-487.146056,0.00038131,31]
[392839679,1762031446216,-487.146056,0.00038131,31]
[392839680,1762031446226,-487.146056,0.00038131,31]
[392839681,1762031446239,-904.636134,0.00038131,31]
[392839682,1762031446247,-904.636134,0.00038131,31]
[392839683,1762031446256,-151.0,0.00038131,31]
[392839684,1762031446267,-904.636134,0.00038131,31]
[392839685,1762031446275,-243.101567,0.00038131,31]
[392839686,1762031446284,-904.636134,0.00038131,31]
[392839687,1762031446294,-500.0,0.00038139,8]
[392839688,1762031446302,-500.0,0.00038139,8]
[392839689,1762031446312,-500.0,0.00038139,8]
[392839690,1762031446322,-2390.64,0.00038139,8]
[392839691,1762031446332,-2092.52,0.00038139,8]
[392839692,1762031446342,-4261.44,0.00038162,3]
[392839693,1762031446352,-151.0,0.00038162,31]
[392839694,1762031446362,-151.0,0.00038162,31]
[392839695,1762031446373,-151.0,0.00038162,31]
[392839696,1762031446382,-151.0,0.00038162,31]
[392839697,1762031446391,-151.0,0.00038162,31]
[392839698,1762031446399,-151.0,0.00038162,31]
[392839699,1762031446408,-151.0,0.00038162,31]
[392839700,1762031446417,-500.0,0.00038162,8]
[392839701,1762031446426,-500.0,0.00038163,8]
[392839702,1762031446438,-561.98,0.00038163,8]
[392839703,1762031446447,-725.05,0.00038163,2]
[392839704,1762031446456,-500.0,0.00038173,2]
[392839705,1762031446465,-164.1270968,0.00038397,2]
[392839706,1762031446474,-686.3157509,0.0003848,2]
[392839707,1762031446483,-10827.7417874,0.00038508,2]
[392839708,1762031446491,-500.27000001,0.00038599,8]
[392839709,1762031446500,-500.0,0.00038599,8]
[392839710,1762031446509,-500.0,0.00038599,8]
[392839711,1762031446518,-524.09,0.00038599,8]
[392839712,1762031446527,-2390.64,0.00038599,8]
[392839713,1762031446536,-2092.52,0.00038599,8]
[392839714,1762031446545,-151.0,0.000386,7]
[392839715,1762031446554,-151.0,0.000386,120]
[392839716,1762031446563,-151.0,0.000386,7]
[392839717,1762031446572,-151.0,0.000386,7]
[392839718,1762031446581,-151.0,0.000386,120]
[392839719,1762031446591,-311.61,0.000386,2]
[392839720,1762031446600,-231.955479,0.00038608,120]
[392839721,1762031446610,-155.520612,0.00038608,120]
[392839722,1762031446619,-151.0,0.00038608,120]
[392839723,1762031446630,-151.0,0.00038608,120]
[392839724,1762031446639,-151.0,0.00038608,120]
[392839725,1762031446651,-151.0,0.00038608,120]
[392839726,1762031446661,-4261.44,0.00038608,3]
[392839727,1762031446671,-361.44,0.00038608,8]
[392839728,1762031446681,-524.09,0.00038608,8]
[392839729,1762031446691,-6134.93205354,0.00038609,3]
[392839730,1762031446700,-224.13144032,0.00038609,3]
[392839731,1762031446708,-3613.4413482,0.00038619,2]
[392839732,1762031446717,-1406.4388052,0.00038761,2]
[392839733,1762031446726,-152.416193,0.00038761,120]
[392839734,1762031446735,-165.284887,0.00038761,120]
[392839735,1762031446744,-151.0,0.00038761,120]
[392839736,1762031446753,-153.741765,0.00038761,120]
[392839737,1762031446763,-151.0,0.00038761,120]
[392839738,1762031446772,-151.0,0.00038761,120]
[392839739,1762031446781,-181.665866,0.00038761,2]
[392839740,1762031446790,-181.665866,0.00038761,2]
[392839741,1762031446799,-181.665866,0.00038761,2]
[392839742,1762031446808,-181.665866,0.00038761,2]
[392839743,1762031446817,-261.230937,0.00038761,120]
[392839744,1762031446827,-261.230937,0.00038761,120]
[392839745,1762031446836,-261.230937,0.00038761,120]
[392839746,1762031446845,-261.230937,0.00038761,120]
[392839747,1762031446854,-487.146056,0.00038761,120]
[392839748,1762031446863,-487.146056,0.00038761,120]
[392839749,1762031446872,-487.146056,0.00038761,120]
[392839750,1762031446882,-487.146056,0.00038761,120]
[392839751,1762031446891,-904.636134,0.00038761,120]
[392839752,1762031446900,-151.0,0.00038761,7]
[392839753,1762031446910,-151.0,0.00038761,7]
[392839754,1762031446919,-151.0,0.00038761,7]
[392839755,1762031446928,-151.0,0.00038761,7]
[392839756,1762031446937,-151.0,0.00038761,7]
[392839757,1762031446946,-151.0,0.00038761,7]
[392839758,1762031446955,-904.636134,0.00038761,120]
[392839759,1762031446964,-151.0,0.00038761,120]
[392839760,1762031446973,-151.0,0.00038761,7]
[392839761,1762031446982,-151.0,0.00038761,7]
[392839762,1762031446991,-151.0,0.00038761,7]
[392839763,1762031447001,-151.0,0.00038761,7]
[392839764,1762031447010,-904.636134,0.00038761,120]
[392839765,1762031447020,-151.0,0.00038761,7]
[392839766,1762031447028,-151.0,0.00038761,7]
[392839767,1762031447039,-151.0,0.00038761,7]
[392839768,1762031447049,-151.0,0.00038761,7]
[392839769,1762031447059,-151.0,0.00038761,7]
[392839770,1762031447069,-904.636134,0.00038761,120]
[392839771,1762031447079,-151.0,0.00038761,7]
[392839772,1762031447088,-151.0,0.00038761,7]
[392839773,1762031447098,-253.228814,0.00038761,7]
[392839774,1762031447109,-500.0,0.00038998,8]
[392839775,1762031447118,-561.98,0.00038998,8]
[392839776,1762031447128,-524.09,0.00038998,8]
[392839777,1762031447137,-725.05,0.00038998,2]
[392839778,1762031447145,-4261.44,0.00038999,3]
[392839779,1762031447155,-4261.44,0.00038999,3]
[392839780,1762031447165,-500.0,0.00038999,8]
[392839781,1762031447174,-500.0,0.00038999,8]
[392839782,1762031447183,-151.0,0.00038999,120]
[392839783,1762031447192,-178.919373,0.00038999,120]
[392839784,1762031447206,-524.09,0.00038999,8]
[392839785,1762031447215,-151.0,0.00038999,2]
[392839786,1762031447225,-151.0,0.00038999,2]
[392839787,1762031447234,-2390.64,0.00038999,8]
[392839788,1762031447242,-179.915245,0.00038999,120]
[392839789,1762031447251,-179.915245,0.00038999,120]
[392839790,1762031447260,-179.915245,0.00038999,120]
[392839791,1762031447268,-179.915245,0.00038999,120]
[392839792,1762031447278,-2092.52,0.00038999,8]
[392839793,1762031447287,-151.0,0.00039,120]
[392839794,1762031447296,-151.0,0.00039,120]
[392839795,1762031447304,-151.0,0.00039,120]
[392839796,1762031447313,-162.04839,0.00039,120]
[392839797,1762031447322,-151.0,0.00039,120]
[392839798,1762031447331,-161.320003,0.00039,120]
[392839799,1762031447340,-287.880775,0.00039,120]
[392839800,1762031447349,-287.880775,0.00039,120]
[392839801,1762031447359,-287.880775,0.00039,120]
[392839802,1762031447367,-287.880775,0.00039,120]
[392839803,1762031447376,-151.0,0.00039,120]
[392839804,1762031447386,-151.0,0.00039,30]
[392839805,1762031447395,-5952.62,0.00039,14]
[392839806,1762031447404,-154.014209,0.00039,30]
[392839807,1762031447414,-153.73684,0.00039,120]
[392839808,1762031447424,-153.73684,0.00039,120]
[392839809,1762031447433,-153.73684,0.00039,120]
[392839810,1762031447442,-153.73684,0.00039,120]
[392839811,1762031447451,-151.0,0.00039,120]
[392839812,1762031447460,-151.0,0.00039,120]
[392839813,1762031447469,-151.0,0.00039,120]
[392839814,1762031447478,-151.0,0.00039,120]
[392839815,1762031447486,-151.0,0.00039,120]
[392839816,1762031447495,-151.0,0.00039,120]
[392839817,1762031447505,-151.0,0.00039,120]
[392839818,1762031447513,-151.0,0.00039,120]
[392839819,1762031447523,-151.0,0.00039,120]
[392839820,1762031447532,-151.0,0.00039,120]
[392839821,1762031447541,-151.0,0.00039,120]
[392839822,1762031447550,-151.0,0.00039,120]
[392839823,1762031447560,-151.0,0.00039,120]
[392839824,1762031447571,-151.0,0.00039,120]
[392839825,1762031447582,-311.61,0.00039,2]
[392839826,1762031447592,-339.0,0.00039026,120]
[392839827,1762031447601,-6134.93205354,0.00039191,3]
[392839828,1762031447610,-224.13144032,0.00039191,3]
[392839829,1762031447620,-220.6402783,0.00039201,2]
[392839830,1762031447629,-500.0,0.00039395,8]
[392839831,1762031447638,-500.0,0.00039395,8]
[392839832,1762031447647,-2390.64,0.00039395,8]
[392839833,1762031447656,-2092.52,0.00039395,8]
[392839834,1762031447665,-524.09,0.00039396,8]
[392839835,1762031447674,-4261.44,0.00039397,3]
[392839836,1762031447683,-151.0,0.00039398,7]
[392839837,1762031447691,-151.0,0.00039398,120]
[392839838,1762031447700,-151.0,0.00039398,7]
[392839839,1762031447710,-151.0,0.00039398,7]
[392839840,1762031447718,-151.0,0.00039398,120]
[392839841,1762031447727,-500.0,0.00039399,8]
[392839842,1762031447736,-500.0,0.00039399,8]
[392839843,1762031447745,-524.09,0.00039399,8]
[392839844,1762031447827,-2390.64,0.00039399,8]
[392839845,1762031447836,-2092.52,0.00039399,8]
[392839846,1762031447845,-266.22,0.000394,30]
[392839847,1762031447854,-155.168534,0.000394,120]
[392839848,1762031447863,-151.0,0.000394,120]
[392839849,1762031447872,-151.0,0.000394,120]
[392839850,1762031447882,-212.8257,0.000394,120]
[392839851,1762031447892,-167.976893,0.000394,120]
[392839852,1762031447900,-151.0,0.000394,120]
[392839853,1762031447910,-171.850702,0.000394,120]
[392839854,1762031447919,-181.665866,0.000394,2]
[392839855,1762031447928,-181.665866,0.000394,2]
[392839856,1762031447937,-181.665866,0.000394,2]
[392839857,1762031447946,-181.665866,0.000394,2]
[392839858,1762031447955,-261.230937,0.000394,120]
[392839859,1762031447964,-261.230937,0.000394,120]
[392839860,1762031447974,-261.230937,0.000394,120]
[392839861,1762031447983,-261.230937,0.000394,120]
[392839862,1762031447992,-151.0,0.000394,120]
[392839863,1762031448002,-151.0,0.000394,2]
[392839864,1762031448011,-311.61,0.000394,2]
[392839865,1762031448020,-179.915245,0.000394,120]
[392839866,1762031448029,-179.915245,0.000394,120]
[392839867,1762031448038,-179.915245,0.000394,120]
[392839868,1762031448047,-179.915245,0.000394,120]
[392839869,1762031448056,-487.146056,0.000394,120]
[392839870,1762031448065,-487.146056,0.000394,120]
[392839871,1762031448075,-487.146056,0.000394,120]
[392839872,1762031448084,-487.146056,0.000394,120]
[392839873,1762031448094,-904.636134,0.000394,120]
[392839874,1762031448103,-904.636134,0.000394,120]
[392839875,1762031448113,-151.0,0.000394,120]
[392839876,1762031448122,-904.636134,0.000394,120]
[392839877,1762031448132,-904.636134,0.000394,120]
[392839878,1762031448141,-1549.64,0.0003949,3]
[392839879,1762031448150,-774.82,0.0003949,3]
[392839880,1762031448159,-387.42,0.0003949,3]
[392839881,1762031448168,-404.090376,0.00039654,2]
[392839882,1762031448178,-524.09,0.00039689,8]
[392839883,1762031448188,-524.09,0.00039689,8]
[392839884,1762031448197,-524.09,0.00039689,8]
[392839885,1762031448210,-524.09,0.00039689,8]
[392839886,1762031448219,-524.17006719,0.00039689,8]
[392839887,1762031448228,-6134.93205354,0.0003969,3]
[392839888,1762031448238,-224.13144032,0.0003969,3]
[392839889,1762031448248,-153.0,0.000397,120]
[392839890,1762031448257,-151.0,0.000397,120]
[392839891,1762031448266,-151.0,0.000397,120]
[392839892,1762031448278,-151.0,0.000397,120]
[392839893,1762031448287,-151.0,0.000397,120]
[392839894,1762031448296,-222.634314,0.000397,120]
[392839895,1762031448305,-151.0,0.000397,120]
[392839896,1762031448314,-4261.44,0.00039797,3]
[392839897,1762031448323,-500.0,0.00039798,8]
[392839898,1762031448332,-561.98,0.00039798,8]
[392839899,1762031448341,-725.05,0.00039798,2]
[392839900,1762031448351,-151.0,0.000398,120]
[392839901,1762031448359,-151.0,0.000398,120]
[392839902,1762031448368,-151.0,0.000398,120]
[392839903,1762031448377,-151.0,0.000398,120]
[392839904,1762031448388,-224.253136,0.000398,120]
[392839905,1762031448397,-152.371675,0.000398,120]
[392839906,1762031448406,-219.232836,0.000398,120]
[392839907,1762031448415,-151.0,0.000398,7]
[392839908,1762031448424,-170.836481,0.000398,120]
[392839909,1762031448433,-151.0,0.000398,7]
[392839910,1762031448442,-151.0,0.000398,7]
[392839911,1762031448451,-151.0,0.000398,120]
[392839912,1762031448461,-311.61,0.000398,2]
[392839913,1762031448471,-200.0,0.000399,2]
[392839914,1762031448480,-200.0,0.000399,3]
[392839915,1762031448489,-500.0,0.00039976,8]
[392839916,1762031448498,-500.0,0.00039976,8]
[392839917,1762031448508,-2390.64,0.00039976,8]
[392839918,1762031448518,-2092.52,0.00039976,8]
[392839919,1762031448527,-151.0,0.00039977,120]
[392839920,1762031448537,-151.0,0.00039977,120]
[392839921,1762031448547,-151.0,0.00039977,120]
[392839922,1762031448557,-151.0,0.00039977,120]
[392839923,1762031448567,-151.0,0.00039977,120]
[392839924,1762031448577,-165.691456,0.00039977,120]
[392839925,1762031448587,-164.635929,0.00039977,120]
[392839926,1762031448597,-151.0,0.00039977,30]
[392839927,1762031448608,-46.22190936,0.00039977,120]
[392839928,1762031448624,-107.51493064,0.00039977,120]
[392839929,1762031448634,-153.73684,0.00039977,120]
[392839930,1762031448644,-153.73684,0.00039977,120]
[392839931,1762031448655,-153.73684,0.00039977,120]
[392839932,1762031448665,-151.0,0.00039977,120]
[392839933,1762031448675,-4696.96969571,0.0003999,2]
[392839934,1762031448684,-265.73265585,0.00040066,30]
[392839935,1762031448694,-151.68005488,0.00040066,30]
[392839936,1762031448704,-152.28953508,0.00040066,7]
[392839937,1762031448715,-686.3157509,0.00040073,2]
[392839938,1762031448725,-4261.44,0.00040189,3]
[392839939,1762031448735,-6134.93205354,0.0004019,3]
[392839940,1762031448745,-224.13144032,0.0004019,3]
[392839941,1762031448755,-151.0,0.0004019,120]
[392839942,1762031448766,-151.0,0.0004019,2]
[392839943,1762031448776,-179.915245,0.0004019,120]
[392839944,1762031448785,-179.915245,0.0004019,120]
[392839945,1762031448794,-179.915245,0.0004019,120]
[392839946,1762031448803,-179.915241,0.0004019,120]
[392839947,1762031448813,-4261.44,0.00040199,3]
[392839948,1762031448822,-151.0,0.000402,120]
[392839949,1762031448831,-151.0,0.000402,120]
[392839950,1762031448840,-151.0,0.000402,120]
[392839951,1762031448849,-151.0,0.000402,120]
[392839952,1762031448859,-287.880775,0.000402,120]
[392839953,1762031448868,-287.880775,0.000402,120]
[392839954,1762031448877,-287.880775,0.000402,120]
[392839955,1762031448886,-287.880775,0.000402,120]
[392839956,1762031448895,-240.222357,0.000402,120]
[392839957,1762031448904,-181.665866,0.000402,2]
[392839958,1762031448914,-181.665866,0.000402,2]
[392839959,1762031448923,-181.665866,0.000402,2]
[392839960,1762031448932,-181.665866,0.000402,2]
[392839961,1762031448942,-261.230937,0.000402,120]
[392839962,1762031448951,-261.230937,0.000402,120]
[392839963,1762031448960,-261.230937,0.000402,120]
[392839964,1762031448970,-261.230937,0.000402,120]
[392839965,1762031448978,-151.0,0.000402,120]
[392839966,1762031448988,-151.0,0.000402,120]
[392839967,1762031448997,-151.0,0.000402,120]
[392839968,1762031449006,-311.61,0.000402,2]
[392839969,1762031449014,-487.146056,0.000402,120]
[392839970,1762031449024,-487.146056,0.000402,120]
[392839971,1762031449033,-487.146056,0.000402,120]
[392839972,1762031449042,-487.146066,0.000402,120]
[392839973,1762031449051,-904.636134,0.000402,120]
[392839974,1762031449060,-904.636134,0.000402,120]
[392839975,1762031449069,-151.0,0.000402,120]
[392839976,1762031449078,-904.636134,0.000402,120]
[392839977,1762031449088,-904.63612967,0.000402,120]
[392839978,1762031449097,-500.0,0.00040699,8]
[392839979,1762031449106,-500.0,0.00040699,8]
[392839980,1762031449115,-2390.64,0.00040699,8]
[392839981,1762031449124,-1848.3029339,0.00040699,8]
[392839982,1762031449141,-244.2170661,0.00040699,8]
[392839983,1762031449150,-311.61,0.000407,2]
[392839984,1762031449159,-8053.0131744,0.0004082,2]
[392839985,1762031449168,-398.63594376,0.0004098,5]
[392839986,1762031449178,-400.0,0.00041,120]
[392839987,1762031449187,-366.0,0.00041026,120]
[392839988,1762031449196,-163.6,0.00041082,120]
[392839989,1762031449210,-6134.93205354,0.0004109,3]
[392839990,1762031449219,-224.13144032,0.0004109,3]
[392839991,1762031449228,-150.5,0.00041092,120]
[392839992,1762031449237,-151.0,0.00041098,120]
[392839993,1762031449247,-151.0,0.00041098,120]
[392839994,1762031449256,-4261.44,0.00041098,3]
[392839995,1762031449265,-500.0,0.00041099,120]
[392839996,1762031449275,-500.0,0.00041099,120]
[392839997,1762031449286,-2390.64,0.00041099,120]
[392839998,1762031449295,-2092.52,0.00041099,120]
[392839999,1762031449304,-183.985822,0.000411,120]
[392840000,1762031449313,-151.0,0.000411,120]
[392840001,1762031449322,-151.0,0.000411,120]
[392840002,1762031449331,-151.0,0.000411,120]
[392840003,1762031449341,-151.0,0.000411,7]
[392840004,1762031449350,-151.0,0.000411,7]
[392840005,1762031449359,-280.52467,0.000411,7]
[392840006,1762031449367,-311.61,0.000411,2]
[392840007,1762031449376,-151.0,0.00041102,120]
[392840008,1762031449385,-151.0,0.00041102,120]
[392840009,1762031449394,-151.0,0.00041102,120]
[392840010,1762031449403,-282.52976,0.00041102,120]
[392840011,1762031449412,-153.879368,0.00041102,120]
[392840012,1762031449421,-161.455679,0.00041102,120]
[392840013,1762031449430,-500.0,0.00041175,10]
[392840014,1762031449439,-602.19960854,0.00041175,10]
[392840015,1762031449449,-4261.44,0.00041193,3]
[392840016,1762031449458,-181.665866,0.00041194,2]
[392840017,1762031449467,-181.665866,0.00041194,2]
[392840018,1762031449476,-181.665866,0.00041194,2]
[392840019,1762031449485,-181.665868,0.00041194,2]
[392840020,1762031449495,-261.230937,0.00041194,120]
[392840021,1762031449503,-261.230937,0.00041194,120]
[392840022,1762031449513,-261.230937,0.00041194,120]
[392840023,1762031449522,-261.230933,0.00041194,120]
[392840024,1762031449531,-500.0,0.00041203,120]
[392840025,1762031449540,-500.0,0.00041203,120]
[392840026,1762031449550,-2390.64,0.00041203,120]
[392840027,1762031449559,-2092.52,0.00041203,120]
[392840028,1762031449568,-151.0,0.00041204,30]
[392840029,1762031449577,-153.73684,0.00041204,120]
[392840030,1762031449586,-153.73684,0.00041204,120]
[392840031,1762031449595,-153.73684,0.00041204,120]
[392840032,1762031449604,-153.73684,0.00041204,120]
[392840033,1762031449613,-156.935939,0.00041204,120]
[392840034,1762031449622,-4261.44,0.00041291,3]
[392840035,1762031449633,-151.0,0.00041292,120]
[392840036,1762031449641,-151.0,0.00041292,120]
[392840037,1762031449651,-151.0,0.00041292,120]
[392840038,1762031449660,-151.0,0.00041292,120]
[392840039,1762031449669,-287.880775,0.00041292,120]
[392840040,1762031449680,-287.880775,0.00041292,120]
[392840041,1762031449689,-287.880775,0.00041292,120]
[392840042,1762031449699,-287.880775,0.00041292,120]
[392840043,1762031449707,-472.99027103,0.00041391,120]
[392840044,1762031449716,-561.98,0.00041391,120]
[392840045,1762031449725,-725.05,0.00041391,2]
[392840046,1762031449734,-315.33123321,0.00041448,2]
[392840047,1762031449743,-360.01817369,0.00041448,2]
[392840048,1762031449753,-213.41484549,0.00041448,2]
[392840049,1762031449762,-218.71487975,0.00041448,2]
[392840050,1762031449839,-393.68678355,0.00041448,2]
[392840051,1762031449849,-699.18772758,0.00041448,2]
[392840052,1762031449858,-343.72759125,0.00041448,2]
[392840053,1762031449868,-392.83153285,0.00041448,2]
[392840054,1762031449877,-6134.93205354,0.00041479,3]
[392840055,1762031449886,-224.13144032,0.00041479,3]
[392840056,1762031449896,-4261.44,0.00041489,3]
[392840057,1762031449905,-4261.44,0.00041489,3]
[392840058,1762031449915,-4261.44,0.00041489,3]
[392840059,1762031449924,-4261.44,0.00041489,3]
[392840060,1762031449933,-4261.47911723,0.00041489,3]
[392840061,1762031449943,-486.32255334,0.00041499,120]
[392840062,1762031449952,-500.0,0.00041499,120]
[392840063,1762031449969,-2390.64,0.00041499,120]
[392840064,1762031449981,-2092.52,0.00041499,120]
[392840065,1762031449990,-151.0,0.000415,120]
[392840066,1762031450000,-151.0,0.000415,120]
[392840067,1762031450009,-151.0,0.000415,120]
[392840068,1762031450019,-151.0,0.000415,120]
[392840069,1762031450029,-151.0,0.000415,120]
[392840070,1762031450039,-311.61,0.000415,2]
[392840071,1762031450048,-500.0,0.00041508,7]
[392840072,1762031450057,-500.66715373,0.00041508,10]
[392840073,1762031450067,-257.97158409,0.00041594,10]
[392840074,1762031450076,-5952.62,0.000416,14]
[392840075,1762031450086,-686.3157509,0.00041667,2]
[392840076,1762031450095,-2774.68,0.000417,31]
[392840077,1762031450105,-215.16174365,0.00041723,10]
[392840078,1762031450114,-6134.93205354,0.0004189,3]
[392840079,1762031450124,-224.13144032,0.0004189,3]
[392840080,1762031450133,-561.98,0.000419,120]
[392840081,1762031450142,-500.0,0.000419,120]
[392840082,1762031450152,-2390.64,0.000419,120]
[392840083,1762031450161,-311.61,0.000419,2]
[392840084,1762031450171,-151.0,0.000419,10]
[392840085,1762031450180,-725.05,0.000419,2]
[392840086,1762031450189,-2092.52,0.000419,120]
[392840087,1762031450198,-243.04831,0.00041901,120]